bitfinex/quotes_ETHUSD_20241223
["timestamp","ask_amount","ask_price","bid_price","bid_amount"]
[1734950276396,2.99224,3342.0,3341.1,0.8032]
[1734950276596,2.99232,3341.9,3341.1,0.8032]
[1734950276767,0.76,3342.1,3341.2,0.02736961]
[1734950277119,2.9923,3341.9,3341.1,0.8032]
[1734950277820,2.99268,3341.5,3341.1,0.8032]
[1734950278027,2.99276,3341.4,3341.2,0.02764869]
[1734950278317,2.99276,3341.4,3341.1,0.8032]
[1734950278476,2.99243,3341.8,3341.1,0.8032]
[1734950278477,2.9927,3341.5,3341.1,0.8032]
[1734950279018,2.9927,3341.5,3341.2,0.02764869]
[1734950279173,2.9927,3341.5,3341.1,0.8032]
[1734950279374,2.9927,3341.5,3341.3,0.02764869]
[1734950279686,2.99275,3341.4,3341.1,0.8032]
[1734950280413,2.99293,3341.3,3341.1,0.8032]
[1734950280716,2.99268,3341.5,3341.1,0.8032]
[1734950282075,3.0,3341.3,3340.5,0.8041]
[1734950282277,3.0,3341.4,3340.5,0.8041]
[1734950282491,2.99347,3340.6,3340.5,0.8041]
[1734950283425,2.99339,3340.7,3340.2,0.7723]
[1734950283974,3.77071,3340.9,3340.2,0.7723]
[1734950284189,2.99321,3340.9,3340.2,0.7723]
[1734950284385,2.99332,3340.8,3340.2,0.7723]
[1734950284617,3.0,3341.1,3340.2,0.7723]
[1734950284826,2.99338,3340.8,3340.2,0.7723]
[1734950285031,2.99287,3341.3,3340.2,0.7723]
[1734950285334,2.99278,3341.4,3340.2,2.99378]
[1734950285532,2.99315,3341.0,3340.0,0.7723]
[1734950285684,3.0,3341.3,3340.0,0.7723]
[1734950285890,2.99328,3340.9,3340.0,0.7723]
[1734950286135,3.0,3341.3,3340.0,0.7723]
[1734950286432,2.99312,3341.0,3340.0,0.7723]
[1734950286630,5.98532,3341.5,3340.0,0.7723]
[1734950286931,2.99331,3340.8,3340.0,0.7723]
[1734950288031,3.0,3341.1,3340.0,0.7723]
[1734950288207,2.99322,3340.9,3340.0,0.7723]
[1734950288408,2.99329,3340.8,3340.0,0.7723]
[1734950289131,2.99306,3341.1,3340.0,0.7723]
[1734950289290,3.0,3341.2,3340.0,0.7723]
[1734950289721,3.0,3341.1,3340.0,0.7723]
[1734950289994,2.99303,3341.1,3340.0,0.7723]
[1734950290197,3.0,3341.5,3340.0,0.7723]
[1734950290410,2.9932,3340.9,3340.0,0.7723]
[1734950291346,2.99335,3340.8,3340.0,0.7723]
[1734950291493,2.99371,3340.4,3340.0,0.7723]
[1734950291694,0.7942,3340.8,3340.0,0.7723]
[1734950291897,2.99419,3339.8,3339.7,0.7779]
[1734950292149,2.99453,3339.5,3339.0,0.7779]
[1734950292289,2.99419,3339.8,3339.0,0.7779]
[1734950292290,2.99458,3339.4,3339.0,0.7779]
[1734950293307,2.99465,3339.3,3338.6,0.7971]
[1734950294595,3.0,3339.7,3338.6,0.7971]
[1734950294833,2.99448,3339.5,3338.6,0.7971]
[1734950296108,3.845859,3340.0,3338.6,0.7971]
[1734950296109,3.0,3339.9,3338.6,0.7971]
[1734950296475,3.0,3339.9,3338.7,0.7827]
[1734950296476,2.99437,3339.6,3338.7,0.7827]
[1734950296674,2.99451,3339.5,3338.7,0.7827]
[1734950296807,2.99475,3339.2,3338.7,0.7827]
[1734950297009,2.99437,3339.6,3338.7,0.7827]
[1734950297010,2.99428,3339.7,3338.7,0.7827]
[1734950297245,2.995,3338.9,3338.7,0.7827]
[1734950297910,0.55,3339.4,3337.8,0.7726]
[1734950298114,2.99543,3338.5,3337.8,0.7726]
[1734950298537,0.55,3339.4,3337.8,0.7726]
[1734950298852,2.99549,3338.4,3337.8,0.7726]
[1734950299263,2.99565,3338.2,3337.8,0.7726]
[1734950299773,2.99517,3338.7,3337.8,0.7726]
[1734950299774,2.99523,3338.7,3337.8,0.7726]
[1734950299922,3.7594,3338.9,3337.8,0.7726]
[1734950300260,2.99546,3338.4,3337.8,0.7726]
[1734950300444,2.99558,3338.3,3337.8,0.7726]
[1734950300844,2.99537,3338.5,3337.8,0.7726]
[1734950301054,2.99518,3338.7,3337.8,0.7726]
[1734950301257,3.0,3338.9,3337.8,0.7726]
[1734950301571,2.9952,3338.7,3337.8,0.7726]
[1734950301875,2.99528,3338.6,3337.8,0.7726]
[1734950302045,3.0,3339.2,3337.5,8.98]
[1734950302378,3.0,3339.1,3337.6,0.7821]
[1734950302563,3.7991,3339.4,3337.9,2.99588]
[1734950302759,3.7991,3339.4,3338.0,0.7821]
[1734950303074,2.99439,3339.6,3338.4,2.99539]
[1734950303230,2.99439,3339.6,3338.5,0.8093]
[1734950303748,2.99439,3339.6,3338.6,0.8093]
[1734950303943,0.845859,3340.0,3338.6,3.80454]
[1734950304295,2.9944,3339.6,3338.7,0.8093]
[1734950305142,2.99447,3339.5,3338.7,0.8093]
[1734950305597,2.99458,3339.4,3338.7,0.8093]
[1734950306059,3.0,3339.9,3338.7,0.8093]
[1734950306397,2.9945,3339.5,3338.7,0.8093]
[1734950307054,0.55,3340.0,3338.7,0.8093]
[1734950307594,2.99498,3339.0,3338.7,0.8093]
[1734950307795,2.99471,3339.3,3338.7,0.8093]
[1734950307958,2.9941,3339.9,3338.7,0.8093]
[1734950308294,2.99498,3339.0,3338.7,0.8093]
[1734950308597,2.99508,3338.9,3338.7,0.8093]
[1734950309401,2.99482,3339.1,3338.7,0.8093]
[1734950309687,4.3706,3339.6,3338.7,0.8093]
[1734950309852,2.99492,3339.0,3338.7,0.8093]
[1734950313711,2.99422,3339.8,3338.7,0.8093]
[1734950313937,2.99385,3340.2,3338.9,0.7699]
[1734950314378,2.99413,3339.9,3338.9,0.7699]
[1734950314991,2.99413,3339.9,3339.0,0.7699]
[1734950315192,2.99422,3339.8,3339.0,0.7699]
[1734950316177,2.99431,3339.7,3339.0,0.7699]
[1734950316788,2.99412,3339.9,3339.0,0.7699]
[1734950316987,5.99375,3340.3,3339.0,0.7699]
[1734950317208,2.99419,3339.8,3339.0,0.7699]
[1734950317871,2.99401,3340.0,3339.0,0.7699]
[1734950318318,2.99411,3339.9,3339.0,0.7699]
[1734950318816,2.99366,3340.4,3339.3,2.99455]
[1734950319016,2.99364,3340.5,3339.4,2.99452]
[1734950319193,2.99366,3340.4,3339.5,0.8073]
[1734950319388,0.8003,3340.8,3339.5,0.8073]
[1734950319389,2.99338,3340.7,3339.5,0.8073]
[1734950319590,5.98694,3340.6,3339.5,0.8073]
[1734950319905,2.9942,3339.8,3339.5,0.8073]
[1734950320780,3.0,3340.5,3339.5,0.8073]
[1734950320781,2.99396,3340.1,3339.5,0.8073]
[1734950321581,2.99401,3340.0,3339.5,0.8073]
[1734950321991,3.54369,3340.4,3339.5,0.8073]
[1734950322306,2.99393,3340.1,3339.5,0.8073]
[1734950322474,2.99401,3340.0,3339.5,0.8073]
[1734950322994,3.55,3340.4,3339.5,0.8073]
[1734950323320,2.99392,3340.1,3339.5,0.8073]
[1734950323716,2.99376,3340.3,3339.5,0.8073]
[1734950324217,3.55,3340.4,3339.5,0.8073]
[1734950324884,2.99389,3340.2,3339.5,0.8073]
[1734950326491,3.55,3340.6,3339.5,0.8073]
[1734950326685,2.99339,3340.7,3339.5,0.8073]
[1734950326890,2.99367,3340.4,3339.5,0.8073]
[1734950328134,2.99339,3340.7,3339.5,0.8073]
[1734950328332,2.99376,3340.3,3339.5,0.8073]
[1734950328627,2.99384,3340.2,3339.5,0.8073]
[1734950330105,2.99393,3340.1,3339.5,0.8073]
[1734950330305,2.99402,3340.0,3339.5,0.8073]
[1734950331215,3.55,3340.6,3339.5,0.8073]
[1734950331529,2.99437,3339.6,3339.5,0.8073]
[1734950334033,2.99411,3339.9,3338.3,9.737]
[1734950334240,2.99453,3339.5,3338.4,0.757]
[1734950334437,2.99474,3339.2,3338.4,0.757]
[1734950334942,2.99474,3339.2,3338.4,1.3566132]
[1734950335098,2.9951,3338.8,3338.4,0.757]
[1734950335803,2.99494,3339.0,3338.4,0.757]
[1734950336001,2.99446,3339.5,3338.4,0.757]
[1734950336200,2.99516,3338.8,3338.4,0.757]
[1734950337510,2.99446,3339.5,3338.1,0.7931]
[1734950337511,2.99534,3338.6,3338.1,0.7931]
[1734950337745,2.99556,3338.3,3338.1,0.7931]
[1734950339127,0.7824,3339.0,3338.1,0.7931]
[1734950339442,2.99579,3338.1,3337.6,0.7617]
[1734950340024,3.55,3338.7,3337.6,0.7617]
[1734950340226,2.99571,3338.1,3337.6,0.7617]
[1734950340571,6.27602749,3339.0,3337.6,0.7617]
[1734950340840,6.27602749,3339.0,3337.0,8.98]
[1734950340841,2.99634,3337.4,3337.0,0.7617]
[1734950341345,2.99656,3337.2,3337.0,0.7617]
[1734950341513,0.55,3338.0,3337.0,0.7617]
[1734950341715,3.54588,3338.0,3337.0,0.7617]
[1734950342245,2.99637,3337.4,3337.0,0.7617]
[1734950342806,2.99617,3337.6,3337.0,0.7617]
[1734950343259,2.99635,3337.4,3336.6,0.8149]
[1734950343463,0.7623,3337.7,3336.6,0.8149]
[1734950343753,0.55,3337.2,3336.6,0.8149]
[1734950344053,0.55,3337.3,3336.6,0.8149]
[1734950344217,2.99672,3337.0,3336.6,0.8149]
[1734950344609,3.0,3337.4,3336.6,0.8149]
[1734950344806,2.9966,3337.2,3336.6,0.8149]
[1734950345261,0.36908078,3338.7,3336.1,0.59827392]
[1734950345262,3.11746993,3338.2,3336.8,0.8211]
[1734950345424,2.99607,3337.7,3336.8,0.8004]
[1734950345618,5.49362749,3338.1,3336.8,0.8004]
[1734950345619,3.0,3338.1,3336.8,0.8004]
[1734950345935,2.99634,3337.5,3336.8,0.8004]
[1734950346360,2.9964,3337.4,3336.8,0.8004]
[1734950346660,0.55,3338.0,3336.8,0.8004]
[1734950346808,2.99653,3337.2,3336.8,0.8004]
[1734950347009,2.99607,3337.7,3336.8,0.8004]
[1734950347241,3.55,3337.8,3336.8,0.8004]
[1734950347568,2.99625,3337.6,3336.8,0.8004]
[1734950347771,2.99632,3337.5,3336.8,0.8004]
[1734950349762,2.99606,3337.8,3336.8,0.8004]
[1734950349965,2.99606,3337.8,3336.9,0.7543]
[1734950350271,2.99608,3337.7,3336.9,0.7543]
[1734950351476,2.99619,3337.6,3336.9,0.7543]
[1734950354070,2.99597,3337.9,3336.9,0.7543]
[1734950354282,3.0,3338.0,3336.9,0.7543]
[1734950354578,3.0,3338.0,3337.1,0.813]
[1734950354579,3.0,3337.9,3337.1,0.813]
[1734950355115,2.99599,3337.8,3337.1,0.813]
[1734950355570,2.99602,3337.8,3337.1,0.813]
[1734950355721,2.99634,3337.4,3337.1,0.813]
[1734950356320,2.9963,3337.5,3337.1,0.813]
[1734950357449,2.99589,3337.9,3337.1,0.813]
[1734950357450,2.99592,3337.9,3337.1,0.813]
[1734950357659,2.99568,3338.2,3337.2,3.82931]
[1734950357863,2.99572,3338.1,3337.3,0.8328]
[1734950358081,2.99563,3338.2,3337.3,0.8328]
[1734950358373,2.99532,3338.6,3337.3,0.8328]
[1734950358535,2.99535,3338.5,3337.3,0.8328]
[1734950358723,2.99566,3338.2,3337.3,0.8328]
[1734950358926,3.0,3338.4,3337.3,0.8328]
[1734950359150,3.0,3338.5,3337.3,0.8328]
[1734950359363,2.99588,3338.0,3337.3,0.8328]
[1734950359765,3.0,3338.7,3337.3,0.8328]
[1734950359927,0.7842,3338.8,3337.5,0.77]
[1734950360128,2.99519,3338.7,3337.6,2.99613]
[1734950360440,2.99535,3338.6,3337.7,0.8029]
[1734950360634,0.7926,3339.1,3337.7,0.8029]
[1734950360840,2.99543,3338.5,3337.7,0.8029]
[1734950361688,2.99548,3338.4,3337.7,0.8029]
[1734950362475,2.99563,3338.2,3337.7,0.8029]
[1734950363432,3.0,3338.7,3337.7,0.8029]
[1734950363699,2.99542,3338.5,3337.7,0.8029]
[1734950363848,2.9952,3338.7,3337.7,0.8029]
[1734950364249,2.99535,3338.6,3337.7,0.8029]
[1734950364893,2.99552,3338.4,3337.7,0.8029]
[1734950365095,2.99515,3338.8,3337.7,0.8029]
[1734950365292,2.99528,3338.6,3337.7,0.8029]
[1734950365966,3.0,3339.1,3337.9,0.8149]
[1734950366203,3.0,3338.9,3338.0,0.7766]
[1734950366353,3.0,3338.9,3338.1,0.7766]
[1734950366554,2.99492,3339.0,3338.1,0.7766]
[1734950367190,2.99492,3339.0,3338.2,0.59410514]
[1734950367390,2.99492,3339.0,3338.3,0.7766]
[1734950367901,2.99482,3339.1,3338.3,0.7766]
[1734950369175,2.99474,3339.2,3338.3,0.7766]
[1734950371422,2.99489,3339.1,3338.3,0.7766]
[1734950371606,0.55,3339.5,3338.3,0.7766]
[1734950371780,3.54449,3339.5,3338.3,0.7766]
[1734950372120,2.9948,3339.2,3338.3,0.7766]
[1734950373301,2.99475,3339.2,3338.3,0.7766]
[1734950375129,3.0,3339.9,3338.3,0.7766]
[1734950375130,2.995,3338.9,3338.3,0.7766]
[1734950375894,2.99485,3339.1,3338.3,0.7766]
[1734950376127,2.99499,3339.0,3338.3,0.7766]
[1734950376295,3.0,3339.5,3338.3,0.7766]
[1734950376502,2.99498,3339.0,3338.3,0.7766]
[1734950377228,3.0,3339.5,3338.3,0.7766]
[1734950377395,3.0,3339.5,3338.4,0.7543]
[1734950377599,2.99428,3339.7,3338.6,2.99519]
[1734950377815,2.99428,3339.7,3338.7,0.7543]
[1734950378316,2.99438,3339.6,3338.7,0.7543]
[1734950378520,2.99438,3339.6,3338.7,2.99517]
[1734950378700,2.99422,3339.8,3338.8,0.7879]
[1734950379222,2.49362749,3340.3,3338.9,0.7685]
[1734950379403,2.99411,3339.9,3338.9,2.99493]
[1734950379607,2.99411,3339.9,3339.0,0.7685]
[1734950380225,2.99417,3339.9,3339.0,0.7685]
[1734950381435,2.99419,3339.8,3339.0,0.7685]
[1734950381618,0.55,3340.1,3339.0,0.7685]
[1734950381820,2.99418,3339.9,3339.0,0.7685]
[1734950383866,2.99418,3339.9,3339.0,1.36823485]
[1734950384040,2.99418,3339.9,3339.1,0.7829]
[1734950386429,3.0,3340.3,3339.5,0.7588]
[1734950386660,3.31702749,3340.6,3339.5,0.7588]
[1734950386856,3.0,3340.4,3339.5,0.7588]
[1734950387063,2.99384,3340.2,3339.5,0.7588]
[1734950389973,3.26422749,3341.0,3339.8,2.99419]
[1734950390176,2.49362749,3341.0,3339.9,0.0299387]
[1734950390346,2.49362749,3341.0,3339.9,0.7914387]
[1734950390546,2.49362749,3341.0,3340.1,0.7615]
[1734950390778,2.99378,3340.3,3340.1,0.7615]
[1734950390982,2.49362749,3341.1,3339.5,0.7615]
[1734950390983,2.99383,3340.2,3339.5,0.7615]
[1734950391164,0.7931,3340.9,3339.5,0.7615]
[1734950391337,0.7931,3340.8,3339.5,0.7615]
[1734950391675,2.99433,3339.7,3339.5,0.7615]
[1734950391982,2.99437,3339.6,3339.5,0.7615]
[1734950392161,2.99437,3339.6,3338.9,0.7615]
[1734950396052,0.7931,3340.1,3338.9,0.7615]
[1734950396053,2.99446,3339.5,3338.9,0.7615]
[1734950402388,0.55,3339.8,3338.9,0.7615]
[1734950402591,2.9948,3339.2,3338.9,0.7615]
[1734950402795,2.99483,3339.1,3338.9,0.7615]
[1734950402957,2.9949,3339.0,3338.9,0.7615]
[1734950403156,2.99504,3338.9,3338.0,0.7904]
[1734950403668,2.99504,3338.9,3338.3,0.7904]
[1734950404581,0.8171,3339.5,3338.3,0.7904]
[1734950404756,2.99483,3339.1,3338.3,0.7904]
[1734950405165,2.99493,3339.0,3338.3,0.7904]
[1734950405588,2.49362749,3339.6,3338.3,0.7904]
[1734950405792,2.49362749,3339.6,3338.6,8.98]
[1734950405994,2.49362749,3339.7,3338.8,11.16868988]
[1734950406202,2.49362749,3339.7,3339.1,0.7904]
[1734950406376,2.49362749,3339.7,3339.3,0.7904]
[1734950406581,2.49362749,3339.7,3339.5,0.7511]
[1734950406780,2.49362749,3340.7,3339.5,0.7511]
[1734950407017,2.99377,3340.3,3339.5,0.7511]
[1734950407163,2.49362749,3340.7,3339.5,0.7511]
[1734950407364,5.49362749,3340.7,3339.5,0.7511]
[1734950407601,2.99392,3340.1,3339.5,0.7511]
[1734950408237,2.99356,3340.5,3339.5,0.7511]
[1734950408445,2.49362749,3340.7,3339.5,0.7511]
[1734950408648,2.99354,3340.6,3339.7,0.7779]
[1734950410650,2.99333,3340.8,3339.7,0.7779]
[1734950410951,2.99372,3340.4,3339.7,0.7779]
[1734950412436,3.26302749,3340.9,3339.7,0.7779]
[1734950412650,6.25627749,3340.9,3339.9,2.99404]
[1734950412846,2.49362749,3340.9,3340.0,2.99392]
[1734950413004,2.49362749,3340.9,3340.1,0.7557]
[1734950413210,2.49362749,3340.8,3340.1,0.7557]
[1734950414107,2.99315,3341.0,3340.1,0.7557]
[1734950414509,2.99315,3341.0,3340.1,1.36501512]
[1734950415951,6.78151,3341.2,3340.1,4.35885512]
[1734950416113,2.99311,3341.0,3340.1,1.36501512]
[1734950416516,2.99311,3341.0,3340.1,0.7557]
[1734950416716,6.78146,3341.2,3340.1,3.74961]
[1734950417125,2.99306,3341.1,3340.1,3.74961]
[1734950417320,2.99306,3341.1,3340.2,0.7533]
[1734950422112,2.49362749,3341.4,3340.4,0.8287]
[1734950422311,2.49362749,3341.4,3340.6,3.8221]
[1734950422627,2.49362749,3341.4,3339.8,8.98]
[1734950422628,2.49362749,3341.4,3340.8,2.99327]
[1734950422842,2.49362749,3341.4,3340.9,0.8287]
[1734950423215,2.9924,3341.8,3340.9,0.8287]
[1734950425061,2.99251,3341.7,3340.9,0.8287]
[1734950425656,0.55,3342.0,3340.9,0.8287]
[1734950425959,2.99257,3341.7,3340.9,0.8287]
[1734950426970,0.55,3342.0,3340.9,0.8287]
[1734950427170,2.49362749,3342.3,3341.2,0.7861]
[1734950427467,2.49362749,3342.3,3341.4,0.7861]
[1734950427673,2.49362749,3342.3,3341.7,0.7861]
[1734950428432,2.49362749,3342.3,3341.8,2.99236]
[1734950428634,2.49362749,3342.3,3341.9,0.7861]
[1734950428945,2.99144,3342.9,3341.9,0.7861]
[1734950431970,2.99144,3342.9,3342.1,0.7761]
[1734950432170,0.7528,3343.0,3342.1,0.7761]
[1734950432389,0.55,3343.1,3342.2,0.82376882]
[1734950432687,0.831,3343.4,3342.2,0.82376882]
[1734950432688,2.99132,3343.0,3342.2,0.82376882]
[1734950433245,3.822,3343.4,3342.2,0.82376882]
[1734950433246,2.99116,3343.2,3342.2,0.82376882]
[1734950434185,0.831,3343.4,3342.2,0.82376882]
[1734950434186,0.55,3343.3,3342.2,3.81571882]
[1734950434413,0.55,3343.3,3342.3,0.7829]
[1734950434569,3.54107,3343.3,3342.3,2.99189]
[1734950434769,3.54107,3343.3,3342.4,0.80848783]
[1734950435511,0.55,3343.3,3342.4,0.80848783]
[1734950435656,0.831,3343.4,3342.4,0.80848783]
[1734950436793,2.99115,3343.2,3342.4,0.80848783]
[1734950437699,1.10211746,3344.3,3343.2,2.99114]
[1734950437883,1.10211746,3344.3,3343.4,2.99088]
[1734950438069,2.49202563,3344.5,3343.5,0.8049]
[1734950438998,3.73803845,3344.9,3343.5,3.79576]
[1734950438999,2.98962,3344.9,3343.5,3.79576]
[1734950439195,2.98984,3344.7,3343.8,0.7978]
[1734950439399,0.7902,3345.0,3343.8,0.7978]
[1734950439599,2.9897,3344.9,3343.8,0.7978]
[1734950439927,2.9897,3344.9,3343.8,3.78832]
[1734950440131,2.98973,3344.8,3343.9,0.04327809]
[1734950440693,2.98975,3344.8,3343.9,0.04327809]
[1734950441128,2.98984,3344.7,3343.9,0.04327809]
[1734950445041,2.98991,3344.6,3343.9,0.04327809]
[1734950445247,0.55,3344.9,3343.9,0.04327809]
[1734950445434,2.98992,3344.6,3343.9,0.04327809]
[1734950447067,2.98972,3344.8,3343.9,0.04327809]
[1734950447350,2.98955,3345.0,3344.0,0.8314]
[1734950447558,2.98955,3345.0,3344.1,0.04160786]
[1734950447847,2.98955,3345.0,3344.1,0.8314]
[1734950448159,2.98955,3345.0,3344.2,0.04160786]
[1734950449309,0.7971,3345.3,3344.3,0.7881]
[1734950449515,3.75066,3345.6,3344.3,0.7881]
[1734950449745,2.98925,3345.4,3344.4,0.04160786]
[1734950449942,0.7616,3345.6,3344.5,0.7881]
[1734950450155,2.98905,3345.6,3344.6,0.859605]
[1734950450477,2.98919,3345.4,3344.6,0.82970786]
[1734950450761,2.98927,3345.3,3344.6,0.82970786]
[1734950451047,3.75037,3345.9,3344.6,0.82970786]
[1734950451048,0.7616,3345.9,3344.6,0.82970786]
[1734950451207,0.7616,3345.9,3344.6,3.81956786]
[1734950451413,0.55,3345.6,3344.6,0.82970786]
[1734950451712,0.55,3345.8,3344.6,0.82970786]
[1734950451913,2.98919,3345.4,3344.6,0.82970786]
[1734950453020,0.55,3345.8,3344.6,3.81959786]
[1734950453230,0.55,3345.8,3344.7,0.817]
[1734950453426,2.98908,3345.5,3344.7,0.817]
[1734950453634,2.98908,3345.5,3344.8,0.04112433]
[1734950454028,0.55,3345.8,3344.8,0.04112433]
[1734950454229,0.55,3345.6,3344.8,0.04112433]
[1734950454555,2.98891,3345.7,3344.7,0.817]
[1734950454556,2.98916,3345.5,3344.9,0.04112433]
[1734950454858,2.98916,3345.5,3344.7,0.817]
[1734950455054,2.98916,3345.5,3345.0,0.04112433]
[1734950455255,2.98916,3345.5,3344.7,0.817]
[1734950455459,2.98916,3345.5,3345.1,0.04111108]
[1734950455763,2.98916,3345.5,3345.2,0.04110446]
[1734950455965,0.55,3345.6,3344.7,0.817]
[1734950456121,0.55,3345.6,3344.8,0.04110446]
[1734950456556,2.98901,3345.6,3344.8,0.04110446]
[1734950456974,2.98908,3345.6,3344.8,0.04110446]
[1734950457170,0.55,3345.8,3344.8,0.04110446]
[1734950457477,3.75038,3345.9,3344.8,0.04110446]
[1734950457478,0.55,3345.6,3344.8,0.04110446]
[1734950457637,2.98912,3345.5,3344.8,0.04110446]
[1734950458159,3.53962,3344.9,3344.8,0.04110446]
[1734950458360,0.55,3344.9,3344.3,0.7803]
[1734950458521,2.99007,3344.4,3343.6,0.7803]
[1734950458859,2.99007,3344.4,3343.7,0.0377812]
[1734950459068,2.99005,3344.5,3343.7,0.0377812]
[1734950459233,3.53969,3344.9,3343.7,0.0377812]
[1734950459234,0.55,3344.8,3343.7,0.0377812]
[1734950459558,0.55,3344.8,3343.8,0.7799]
[1734950459864,2.98949,3345.1,3344.0,0.7799]
[1734950460058,0.55,3345.0,3344.0,0.7799]
[1734950460358,0.55,3345.2,3344.1,0.85531691]
[1734950460521,2.98971,3344.8,3344.1,0.85531691]
[1734950460719,2.98955,3345.0,3344.1,0.85531691]
[1734950460922,2.98929,3345.3,3344.1,0.85531691]
[1734950461157,2.98945,3345.1,3344.1,0.85531691]
[1734950462156,0.55,3345.5,3344.1,0.85531691]
[1734950462319,2.98947,3345.1,3344.1,0.85531691]
[1734950462942,2.98954,3345.0,3344.1,0.85531691]
[1734950464558,2.98929,3345.3,3344.2,0.02989912]
[1734950464759,2.98929,3345.3,3344.3,0.762]
[1734950464961,2.98929,3345.3,3344.4,0.03621691]
[1734950465134,2.98929,3345.3,3344.5,0.7645]
[1734950465582,2.98929,3345.3,3344.6,0.03621691]
[1734950465932,2.98939,3345.2,3344.6,0.03621691]
[1734950466168,3.53917,3345.5,3344.6,0.03621691]
[1734950466349,0.55,3345.5,3344.7,0.7645]
[1734950466555,2.98935,3345.3,3344.7,0.7645]
[1734950466861,0.55,3345.5,3344.7,0.7645]
[1734950466862,3.5391,3345.5,3344.7,0.7645]
[1734950467167,0.55,3345.5,3344.8,0.03621691]
[1734950467326,2.98918,3345.4,3344.8,0.03621691]
[1734950467963,2.9888,3345.9,3344.9,0.7645]
[1734950468165,2.98872,3346.0,3344.9,0.79439526]
[1734950468464,2.98872,3346.0,3345.1,0.7645]
[1734950468926,0.8142,3346.3,3345.2,0.80076328]
[1734950469125,2.98849,3346.2,3345.2,0.80076328]
[1734950470638,3.80231,3346.6,3345.2,0.80076328]
[1734950470841,3.55,3346.5,3345.2,0.80076328]
[1734950471162,2.98898,3345.7,3345.2,0.80076328]
[1734950471665,2.98861,3346.1,3345.2,0.80076328]
[1734950471827,0.55,3345.7,3345.2,0.80076328]
[1734950472032,2.98925,3345.4,3345.2,0.80076328]
[1734950472554,2.98925,3345.4,3345.2,0.7645]
[1734950472961,2.98926,3345.3,3345.2,0.7645]
[1734950473384,2.98926,3345.3,3345.2,0.80004809]
[1734950473544,3.53879,3345.9,3345.2,0.80004809]
[1734950473745,0.55,3345.9,3345.2,0.7645]
[1734950474052,2.98882,3345.8,3345.2,0.7645]
[1734950474681,2.98865,3346.0,3345.3,0.03565402]
[1734950474989,2.98847,3346.2,3345.4,0.8277]
[1734950475477,2.98828,3346.4,3345.4,0.8277]
[1734950475694,2.98828,3346.4,3345.5,0.86335402]
[1734950475841,2.49202563,3346.5,3345.5,0.86335402]
[1734950476299,2.98813,3346.6,3345.5,0.86335402]
[1734950476540,2.49202563,3346.9,3345.5,0.86335402]
[1734950476710,5.47987563,3346.9,3345.5,0.86335402]
[1734950477006,2.98817,3346.6,3345.5,0.86335402]
[1734950477710,2.98821,3346.5,3345.7,0.8277]
[1734950478000,2.98821,3346.5,3345.8,0.03289534]
[1734950478001,2.98828,3346.5,3345.8,0.03289534]
[1734950478155,0.55,3346.8,3345.8,0.03289534]
[1734950478354,0.55,3346.7,3345.8,0.03289534]
[1734950478582,2.98831,3346.4,3345.8,0.03289534]
[1734950478988,2.98813,3346.6,3345.9,0.8052]
[1734950479162,2.98813,3346.6,3345.9,0.83809534]
[1734950479357,0.55,3347.0,3345.9,0.8052]
[1734950479607,2.98794,3346.8,3346.1,0.7956]
[1734950480180,2.98794,3346.8,3346.2,0.03289534]
[1734950480399,2.98794,3346.8,3346.3,0.7956]
[1734950480708,2.98794,3346.8,3346.3,0.82849534]
[1734950480874,2.98794,3346.8,3346.3,0.7956]
[1734950482499,2.98776,3347.0,3346.4,0.03289534]
[1734950482905,2.98776,3347.0,3346.3,0.7956]
[1734950483304,2.98776,3347.0,3346.4,0.03289534]
[1734950484223,3.30332563,3347.4,3346.4,0.03289534]
[1734950484518,2.98786,3346.9,3346.4,0.03289534]
[1734950486416,2.98795,3346.8,3346.4,0.03289534]
[1734950486826,2.98775,3347.0,3346.4,0.03289534]
[1734950486988,2.98812,3346.6,3346.4,0.03289534]
[1734950487314,0.55,3347.3,3346.3,0.7956]
[1734950487315,2.98819,3346.5,3346.3,0.7956]
[1734950487676,2.98819,3346.5,3346.4,0.03289534]
[1734950488112,2.98819,3346.5,3346.3,0.7956]
[1734950488521,2.98819,3346.5,3346.4,0.03289534]
[1734950488680,0.55,3347.3,3346.4,0.03289534]
[1734950488882,0.55,3347.0,3346.3,0.7956]
[1734950489194,2.98804,3346.7,3346.4,0.03263071]
[1734950489524,2.98804,3346.7,3346.3,0.7956]
[1734950489825,2.49202563,3347.3,3346.3,0.7956]
[1734950489826,2.98786,3346.9,3346.4,0.03263071]
[1734950490177,2.98786,3346.9,3346.3,0.7956]
[1734950490383,2.98767,3347.1,3346.4,0.0323793]
[1734950490693,2.98767,3347.1,3346.5,0.7717]
[1734950491480,2.98767,3347.1,3346.6,0.03239253]
[1734950492995,2.9875,3347.3,3346.6,0.03239253]
[1734950493198,2.9875,3347.3,3346.7,0.7618]
[1734950493398,2.9875,3347.3,3346.7,0.79401393]
[1734950496043,2.98758,3347.2,3346.7,0.79401393]
[1734950496332,2.98769,3347.1,3346.7,0.79401393]
[1734950497038,2.98777,3347.0,3346.7,0.79401393]
[1734950501453,2.98721,3347.6,3346.7,0.79401393]
[1734950501658,2.98769,3347.1,3346.7,0.79401393]
[1734950502654,2.98777,3347.0,3346.7,0.79401393]
[1734950503075,2.98766,3347.1,3346.7,0.79401393]
[1734950503241,2.98748,3347.3,3346.7,0.79401393]
[1734950503445,2.98772,3347.1,3346.7,0.79401393]